[Event "WYCC 2018 G18"]
[Site "Halkidiki"]
[Date "2018.10.22"]
[Round "4"]
[White "Muratova, Saltanat"]
[Black "Cvitan, Ena"]
[Result "1/2-1/2"]
[ECO "B10"]
[WhiteElo "1859"]
[BlackElo "2034"]
[Annotator "NA"]
[PlyCount "47"]
[EventDate "2018.10.20"]
[EventType "swiss"]
[EventCountry "GRE"]
[SourceTitle "playchess.com"]
[Source "ChessBase"]
[SourceQuality "1"]
[TimeControl "40/5400+30:1800+30"]

1. e4 {[%emt 0:00:00]} c6 {[%emt 0:00:00]} 2. c4 {[%emt 0:00:00]} d5 {[%emt 0:00:00]} 3. cxd5 {[%emt 0:00:02]} cxd5 {[%emt 0:00:01]} 4. exd5 {[%emt 0:00:06]} Nf6 {[%emt 0:00:33]} 5. Bb5+ {[%emt 0:00:09]} Nbd7 {[%emt 0:02:11]} 6. Nc3 {[%emt 0:02:26]} g6 {[%emt 0:04:29]} 7. d4 {[%emt 0:01:13]} Bg7 {[%emt 0:03:01]} 8. d6 {[%emt 0:00:30]} e6 {[%emt 0:15:48]} 9. Nf3 {[%emt 0:05:39]} O-O {[%emt 0:01:10]} 10. O-O $11 {[%emt 0:10:07] LiveBook: 33 Games} Nb6 {[%emt 0:06:19]} 11. Bf4 {[%emt 0:05:36]} Nbd5 {[%emt 0:12:48]} 12. Be5 {[%emt 0:04:21]} Nxc3 {[%emt 0:06:19]} 13. bxc3 {[%emt 0:00:08]} Ne4 {[%emt 0:00:41]} 14. Qb3 {[%emt 0:12:11]} Nxd6 {[%emt 0:02:40]} 15. Rfd1 {[%emt 0:07:48]} Nxb5 {[%emt 0:08:52]} 16. Qxb5 {[%emt 0:00:08]} Qe7 {[%emt 0:05:57]} 17. Nd2 {[%emt 0:05:54]} b6 {[%emt 0:06:27]} 18. Ne4 {[%emt 0:00:48]} Bb7 {[%emt 0:02:41]} 19. Nd6 {[%emt 0:14:43]} Rfd8 {[%emt 0:05:57]} 20. Qb4 {[%emt 0:01:08]} Bf8 {[%emt 0:05:12]} 21. Nxb7 {[%emt 0:01:41]} Qxb7 {[%emt 0:00:09]} 22. Qb3 {[%emt 0:03:38]} Rac8 {[%emt 0:01:14]} 23. Rac1 {[%emt 0:02:30]} Bg7 {[%emt 0:01:11]} 24. Bxg7 {[%emt 0:04:28]} 1/2-1/2

[Event "WYCC 2018 G18"]
[Site "Halkidiki"]
[Date "2018.10.22"]
[Round "4"]
[White "Jie, Tianhui"]
[Black "Li, Yilin"]
[Result "1/2-1/2"]
[ECO "D43"]
[WhiteElo "1849"]
[BlackElo "1993"]
[Annotator "NA"]
[PlyCount "138"]
[EventDate "2018.10.20"]
[EventType "swiss"]
[EventCountry "GRE"]
[SourceTitle "playchess.com"]
[Source "ChessBase"]
[SourceQuality "1"]
[TimeControl "40/5400+30:1800+30"]

1. d4 {[%emt 0:00:00]} d5 {[%emt 0:00:00]} 2. c4 {[%emt 0:00:00]} c6 {[%emt 0:00:07]} 3. Nc3 {[%emt 0:00:00]} Nf6 {[%emt 0:00:08]} 4. Nf3 {[%emt 0:00:00]} e6 {[%emt 0:00:15]} 5. cxd5 {[%emt 0:00:05]} exd5 {[%emt 0:00:24]} 6. Bg5 {[%emt 0:00:09]} Be7 {[%emt 0:03:14]} 7. e3 {[%emt 0:00:07]} Nbd7 {[%emt 0:03:38]} 8. Bd3 {[%emt 0:00:15]} O-O {[%emt 0:06:34]} 9. O-O {[%emt 0:00:11]} Ne4 {[%emt 0:01:47]} 10. Bxe7 {[%emt 0:00:46]} Qxe7 {[%emt 0:00:22]} 11. Qc2 {[%emt 0:00:39]} f5 {[%emt 0:03:35]} 12. Rab1 {[%emt 0:02:30]} Ndf6 {[%emt 0:11:09]} 13. b4 {[%emt 0:02:51]} b5 $16 {[%emt 0:13:54]} 14. Ne5 {[%emt 0:02:23]} Bd7 {[%emt 0:01:34]} 15. Ne2 {[%emt 0:10:13]} Rfc8 {[%emt 0:10:00]} 16. Ng3 {[%emt 0:15:22]} g6 {[%emt 0:09:19]} 17. Rfc1 {[%emt 0:01:33]} Nd6 {[%emt 0:04:32]} 18. h4 {[%emt 0:10:32]} a5 {[%emt 0:10:16]} 19. h5 {[%emt 0:06:42]} Be8 {[%emt 0:01:22]} 20. bxa5 {[%emt 0:04:29]} Rxa5 {[%emt 0:02:30]} 21. hxg6 {[%emt 0:08:18]} hxg6 {[%emt 0:02:10]} 22. Ra1 {[%emt 0:06:27]} Nc4 {[%emt 0:06:53]} 23. Bxc4 {[%emt 0:00:48]} dxc4 {[%emt 0:02:20]} 24. e4 {[%emt 0:04:47]} f4 {[%emt 0:00:53]} 25. Ne2 {[%emt 0:00:26]} g5 {[%emt 0:00:38]} 26. f3 {[%emt 0:04:35]} c5 {[%emt 0:01:14]} 27. Qc3 {[%emt 0:02:11]} Ra7 {[%emt 0:00:49]} 28. d5 {[%emt 0:02:21]} b4 {[%emt 0:00:32]} 29. d6 bxc3 {[%emt 0:03:05]} 30. dxe7 {[%emt 0:03:22]} Rxe7 {[%emt 0:00:01]} 31. Nxc4 {[%emt 0:00:48]} Rd8 {[%emt 0:00:44]} 32. Nxc3 {[%emt 0:01:07]} Rd4 {[%emt 0:00:12]} 33. Na3 {[%emt 0:00:54]} Rd2 {[%emt 0:01:25]} 34. Nc4 {[%emt 0:01:58]} Rd4 {[%emt 0:00:03]} 35. Nb6 {[%emt 0:01:17]} Nh5 {[%emt 0:00:58]} 36. Ncd5 {[%emt 0:01:47]} Rh7 {[%emt 0:00:30]} 37. Rd1 {[%emt 0:01:40]} Kf8 {[%emt 0:00:46]} 38. Rxd4 {[%emt 0:00:32]} cxd4 {[%emt 0:00:02]} 39. Kf2 {[%emt 0:00:30]} Ng3 {[%emt 0:00:03]} 40. a4 {[%emt 0:00:00]} Bc6 {[%emt 0:00:00]} 41. Rg1 {[%emt 0:08:35]} Ra7 {[%emt 0:14:05]} 42. Rd1 {[%emt 0:02:41]} Bxd5 {[%emt 0:07:54]} 43. exd5 {[%emt 0:01:58]} Rc7 {[%emt 0:01:40]} 44. Ke1 {[%emt 0:02:48]} Nf5 {[%emt 0:02:40]} 45. Kd2 {[%emt 0:02:42]} Ke7 {[%emt 0:03:14]} 46. a5 {[%emt 0:05:10]} Kd8 {[%emt 0:02:53]} 47. Ra1 {[%emt 0:01:16]} Ne3 {[%emt 0:01:20]} 48. Ra2 {[%emt 0:01:04]} Nf5 {[%emt 0:00:56]} 49. a6 {[%emt 0:00:36]} Ra7 {[%emt 0:00:05]} 50. Nc4 {[%emt 0:00:16]} Ne3 {[%emt 0:00:58]} 51. Ne5 {[%emt 0:00:26]} Kc7 {[%emt 0:00:30]} 52. Nc6 {[%emt 0:02:19]} Ra8 {[%emt 0:00:02]} 53. Nxd4 {[%emt 0:01:47]} Nxd5 {[%emt 0:00:35]} 54. Ne6+ {[%emt 0:01:47]} Kb6 {[%emt 0:00:33]} 55. a7 {[%emt 0:00:34]} Rxa7 {[%emt 0:00:43]} 56. Rxa7 {[%emt 0:00:14]} Kxa7 {[%emt 0:00:01]} 57. Ke2 {[%emt 0:00:48]} Kb6 {[%emt 0:00:30]} 58. Nxg5 {[%emt 0:00:06]} Kc6 {[%emt 0:01:24]} 59. Nf7 {[%emt 0:02:17]} Kd7 {[%emt 0:00:35]} 60. Kf2 {[%emt 0:01:33]} Ke6 {[%emt 0:00:26]} 61. Ng5+ {[%emt 0:00:07]} Kf5 {[%emt 0:00:08]} 62. Ne4 {[%emt 0:00:08]} Ne7 {[%emt 0:00:44]} 63. Kg1 {[%emt 0:00:38]} Ng6 {[%emt 0:00:25]} 64. Kh2 {[%emt 0:00:18]} Ne5 {[%emt 0:00:17]} 65. Kh3 {[%emt 0:00:34]} Ng6 {[%emt 0:00:21]} 66. Nd6+ {[%emt 0:01:13]} Kg5 {[%emt 0:00:21]} 67. Nf7+ {[%emt 0:00:26]} Kf5 {[%emt 0:00:06]} 68. Nd8 {[%emt 0:00:53]} Ne5 {[%emt 0:00:21]} 69. Nb7 {[%emt 0:00:23]} Kg5 {[%emt 0:00:19]} 1/2-1/2

[Event "WYCC 2018 G18"]
[Site "Halkidiki"]
[Date "2018.10.22"]
[Round "4"]
[White "Cosme Contreras, Trilce"]
[Black "Sevilla, Julia"]
[Result "1/2-1/2"]
[ECO "D52"]
[WhiteElo "1829"]
[BlackElo "1947"]
[Annotator "NA"]
[PlyCount "99"]
[EventDate "2018.10.20"]
[EventType "swiss"]
[EventCountry "GRE"]
[SourceTitle "playchess.com"]
[Source "ChessBase"]
[SourceQuality "1"]
[TimeControl "40/5400+30:1800+30"]

1. d4 {[%emt 0:00:00]} d5 {[%emt 0:00:00]} 2. c4 {[%emt 0:00:00]} c6 {[%emt 0:00:00]} 3. Nc3 {[%emt 0:00:00]} Nf6 {[%emt 0:00:00]} 4. Nf3 {[%emt 0:00:13]} e6 {[%emt 0:00:00]} 5. Bg5 {[%emt 0:00:41]} Nbd7 {[%emt 0:00:00]} 6. e3 {[%emt 0:00:25]} Qa5 {[%emt 0:00:00]} 7. cxd5 {[%emt 0:03:24]} exd5 {[%emt 0:03:34]} 8. Bd3 {[%emt 0:08:26]} Bb4 {[%emt 0:08:48]} 9. Qc2 {[%emt 0:05:22] LiveBook: 17 Games} O-O {[%emt 0:00:16]} 10. O-O {[%emt 0:00:46]} Re8 {[%emt 0:03:31]} 11. Bf4 {[%emt 0:12:58]} h6 $14 {[%emt 0:10:34]} 12. a3 {[%emt 0:02:11]} Bxc3 {[%emt 0:17:13]} 13. bxc3 {[%emt 0:00:06]} c5 {[%emt 0:01:35]} 14. c4 {[%emt 0:05:24]} cxd4 {[%emt 0:01:59]} 15. Nxd4 {[%emt 0:09:08]} Nc5 {[%emt 0:04:39]} 16. Nb3 {[%emt 0:03:16]} Nxb3 {[%emt 0:05:08]} 17. Qxb3 {[%emt 0:00:07]} Be6 {[%emt 0:11:23]} 18. Qb5 {[%emt 0:06:07]} Qxb5 {[%emt 0:00:49]} 19. cxb5 {[%emt 0:00:05]} Rac8 {[%emt 0:00:09]} 20. Rac1 {[%emt 0:00:35]} Nd7 {[%emt 0:02:21]} 21. Bd6 {[%emt 0:08:46]} Nb6 {[%emt 0:08:37]} 22. Bc5 {[%emt 0:03:43]} Nc4 {[%emt 0:00:08]} 23. Bxa7 {[%emt 0:02:17]} Nxa3 {[%emt 0:03:28]} 24. Bd4 {[%emt 0:07:11]} Bd7 {[%emt 0:07:44]} 25. b6 {[%emt 0:01:24]} Bb5 {[%emt 0:02:24]} 26. Bxb5 {[%emt 0:01:16]} Nxb5 {[%emt 0:00:01]} 27. f3 {[%emt 0:03:19]} Rc4 {[%emt 0:02:36]} 28. Kf2 {[%emt 0:02:10]} Rec8 {[%emt 0:00:42]} 29. Rxc4 {[%emt 0:00:43]} dxc4 {[%emt 0:03:08]} 30. Ke2 {[%emt 0:00:58]} f6 {[%emt 0:00:13]} 31. Rb1 {[%emt 0:01:30]} Nd6 {[%emt 0:00:03]} 32. Kd2 {[%emt 0:00:31]} Kf7 {[%emt 0:00:02]} 33. Kc3 {[%emt 0:00:22]} Ke6 {[%emt 0:00:17]} 34. e4 {[%emt 0:00:41]} g6 {[%emt 0:02:33]} 35. Kb4 {[%emt 0:01:42]} Rc6 {[%emt 0:02:30]} 36. Rc1 {[%emt 0:01:20]} h5 {[%emt 0:00:53]} 37. Bc5 {[%emt 0:02:00]} Nf7 {[%emt 0:00:24]} 38. Rxc4 {[%emt 0:00:17]} Ne5 {[%emt 0:00:03]} 39. Rc3 {[%emt 0:00:56]} Nd7 {[%emt 0:00:04]} 40. Be3 {[%emt 0:00:00]} Rxc3 {[%emt 0:00:00]} 41. Kxc3 {[%emt 0:01:29]} Kd6 {[%emt 0:02:18]} 42. Kb4 {[%emt 0:08:20]} Kc6 {[%emt 0:00:30]} 43. Bd4 {[%emt 0:00:32]} f5 {[%emt 0:13:57]} 44. exf5 {[%emt 0:04:07]} gxf5 {[%emt 0:00:32]} 45. g3 {[%emt 0:00:55]} Nxb6 {[%emt 0:02:01]} 46. Bxb6 {[%emt 0:00:07]} Kxb6 {[%emt 0:00:02]} 47. h3 {[%emt 0:00:31]} Kc6 48. g4 {[%emt 0:01:03]} fxg4 {[%emt 0:00:33]} 49. fxg4 {[%emt 0:00:14]} hxg4 {[%emt 0:00:14]} 50. hxg4 {[%emt 0:00:09]} 1/2-1/2

[Event "WYCC 2018 G18"]
[Site "Halkidiki"]
[Date "2018.10.22"]
[Round "4"]
[White "Tonso, Liina"]
[Black "Tsivelekidou, Evgenia"]
[Result "1/2-1/2"]
[ECO "E11"]
[WhiteElo "1805"]
[BlackElo "1891"]
[Annotator "NA"]
[PlyCount "82"]
[EventDate "2018.10.20"]
[EventType "swiss"]
[EventCountry "GRE"]
[SourceTitle "playchess.com"]
[Source "ChessBase"]
[SourceQuality "1"]
[TimeControl "40/5400+30:1800+30"]

1. d4 {[%emt 0:00:00]} Nf6 {[%emt 0:00:00]} 2. Nf3 {[%emt 0:00:00]} e6 {[%emt 0:00:00]} 3. c4 {[%emt 0:00:00]} Bb4+ {[%emt 0:00:00]} 4. Nbd2 {[%emt 0:00:11]} O-O {[%emt 0:00:11]} 5. a3 {[%emt 0:00:10]} Bxd2+ {[%emt 0:00:23]} 6. Qxd2 {[%emt 0:00:34]} d6 {[%emt 0:00:20]} 7. b4 {[%emt 0:08:51]} Ne4 {[%emt 0:04:24]} 8. Qc2 {[%emt 0:04:16]} f5 {[%emt 0:00:25]} 9. e3 {[%emt 0:03:36]} Nd7 {[%emt 0:03:28]} 10. Bb2 {[%emt 0:08:22]} b6 {[%emt 0:04:21]} 11. Be2 {[%emt 0:04:30]} Bb7 {[%emt 0:03:15]} 12. O-O {[%emt 0:08:18]} Ndf6 {[%emt 0:04:49]} 13. d5 {[%emt 0:12:18]} e5 {[%emt 0:18:56]} 14. Ne1 {[%emt 0:04:53]} Bc8 {[%emt 0:07:08]} 15. f3 {[%emt 0:09:09]} Ng5 {[%emt 0:00:19]} 16. Rd1 {[%emt 0:07:18]} a5 {[%emt 0:12:38]} 17. c5 {[%emt 0:04:43]} axb4 {[%emt 0:03:26]} 18. axb4 {[%emt 0:00:31]} bxc5 {[%emt 0:04:03]} 19. bxc5 {[%emt 0:00:40]} Qe7 {[%emt 0:03:02]} 20. Bc4 {[%emt 0:02:01]} Kh8 {[%emt 0:05:07]} 21. c6 {[%emt 0:01:26]} Ba6 {[%emt 0:04:30]} 22. h4 {[%emt 0:02:34]} Bxc4 {[%emt 0:01:32]} 23. Qxc4 {[%emt 0:01:55]} Nf7 {[%emt 0:00:28]} 24. Nd3 {[%emt 0:04:17]} Nh5 {[%emt 0:01:57]} 25. Ra1 {[%emt 0:02:02]} Rxa1 {[%emt 0:01:04]} 26. Rxa1 {[%emt 0:01:05]} e4 {[%emt 0:01:16]} 27. fxe4 {[%emt 0:01:29]} Qxh4 {[%emt 0:01:47]} 28. Qd4 {[%emt 0:03:45]} fxe4 {[%emt 0:05:32]} 29. Nf4 {[%emt 0:01:37]} Ne5 {[%emt 0:02:11]} 30. Qxe4 {[%emt 0:00:25]} Ng3 {[%emt 0:02:19]} 31. Qc2 {[%emt 0:01:12]} Ng4 {[%emt 0:02:09]} 32. Nh3 {[%emt 0:01:12]} Nxe3 {[%emt 0:02:25]} 33. Bxg7+ {[%emt 0:00:38]} Kxg7 {[%emt 0:01:04]} 34. Qc3+ {[%emt 0:00:27]} Kg8 {[%emt 0:00:38]} 35. Qxe3 {[%emt 0:00:11]} Ne2+ {[%emt 0:00:46]} 36. Kh2 {[%emt 0:00:57]} Nf4 {[%emt 0:00:24]} 37. Rf1 {[%emt 0:01:14]} Nxh3 {[%emt 0:01:02]} 38. Rxf8+ {[%emt 0:00:33]} Kxf8 {[%emt 0:00:05]} 39. gxh3 Qf6 {[%emt 0:00:30]} 40. Kg3 {[%emt 0:00:00]} Qg6+ {[%emt 0:00:00]} 41. Kh2 {[%emt 0:06:06]} Qc2+ {[%emt 0:05:00]} 1/2-1/2

[Event "WYCC 2018 G18"]
[Site "Halkidiki"]
[Date "2018.10.22"]
[Round "4"]
[White "Manriquez Abarzua, Maria Belen"]
[Black "Golsta, Madara"]
[Result "1/2-1/2"]
[ECO "B27"]
[WhiteElo "1630"]
[BlackElo "1938"]
[Annotator "NA"]
[PlyCount "62"]
[EventDate "2018.10.20"]
[EventType "swiss"]
[EventCountry "GRE"]
[SourceTitle "playchess.com"]
[Source "ChessBase"]
[SourceQuality "1"]
[TimeControl "40/5400+30:1800+30"]

1. e4 {[%emt 0:00:00]} c5 {[%emt 0:00:23]} 2. Nf3 {[%emt 0:00:00]} g6 {[%emt 0:01:10]} 3. d4 {[%emt 0:03:15]} cxd4 {[%emt 0:00:08]} 4. Nxd4 {[%emt 0:00:02]} Bg7 {[%emt 0:00:09]} 5. Nc3 {[%emt 0:00:21]} Nc6 {[%emt 0:00:46]} 6. Be3 {[%emt 0:01:19]} Nf6 {[%emt 0:03:43]} 7. Be2 {[%emt 0:00:38]} O-O {[%emt 0:02:23]} 8. Qd2 {[%emt 0:02:51]} d5 {[%emt 0:03:56]} 9. exd5 {[%emt 0:14:20]} Nxd5 {[%emt 0:00:17]} 10. Nxc6 $11 {[%emt 0:01:01]} bxc6 {[%emt 0:00:14]} 11. Bd4 {[%emt 0:03:11]} e5 {[%emt 0:03:35]} 12. Bc5 {[%emt 0:00:23]} Re8 {[%emt 0:00:06]} 13. O-O {[%emt 0:11:03]} Be6 {[%emt 0:03:12]} 14. Rad1 {[%emt 0:14:18]} Qc7 {[%emt 0:05:14]} 15. Ne4 {[%emt 0:04:59]} f5 {[%emt 0:06:37]} 16. Ng5 {[%emt 0:04:05]} Bf6 {[%emt 0:09:37]} 17. Nxe6 {[%emt 0:00:20]} Rxe6 {[%emt 0:00:05]} 18. Bc4 {[%emt 0:02:18]} Rd8 {[%emt 0:01:28]} 19. Bb4 {[%emt 0:03:58]} Qb7 {[%emt 0:06:23]} 20. Ba5 {[%emt 0:06:09]} Rd7 {[%emt 0:00:38]} 21. Bb3 {[%emt 0:04:16]} Kg7 {[%emt 0:04:38]} 22. Qc1 {[%emt 0:00:53]} Red6 {[%emt 0:01:40]} 23. Bd2 {[%emt 0:03:31]} Qb8 {[%emt 0:06:25]} 24. Rfe1 {[%emt 0:06:00]} Qd8 {[%emt 0:03:38]} 25. c4 {[%emt 0:05:31]} Ne7 {[%emt 0:02:22]} 26. Bh6+ {[%emt 0:00:48]} Kh8 {[%emt 0:00:05]} 27. Rxd6 {[%emt 0:00:17]} Rxd6 {[%emt 0:00:07]} 28. Bg5 {[%emt 0:00:18]} Kg7 {[%emt 0:09:32]} 29. Bh6+ {[%emt 0:00:16]} Kh8 {[%emt 0:00:06]} 30. Bg5 {[%emt 0:00:00]} Kg7 {[%emt 0:00:05]} 31. Bh6+ Kh8 {[%emt 0:00:07]} 1/2-1/2

[Event "WYCC 2018 G18"]
[Site "Halkidiki"]
[Date "2018.10.22"]
[Round "4"]
[White "Salas Estrada, Ana Valeria"]
[Black "Zairbek kyzy, Begimay"]
[Result "0-1"]
[ECO "B10"]
[WhiteElo "1593"]
[BlackElo "1919"]
[Annotator "NA"]
[PlyCount "60"]
[EventDate "2018.10.20"]
[EventType "swiss"]
[EventCountry "GRE"]
[SourceTitle "playchess.com"]
[Source "ChessBase"]
[SourceQuality "1"]
[TimeControl "40/5400+30:1800+30"]

1. e4 {[%emt 0:00:00]} c6 {[%emt 0:00:00]} 2. d3 {[%emt 0:00:00]} d5 {[%emt 0:00:00]} 3. Nd2 {[%emt 0:00:00]} Nf6 {[%emt 0:00:00]} 4. Ngf3 {[%emt 0:00:00]} Bg4 {[%emt 0:00:01]} 5. g3 {[%emt 0:00:11]} e6 {[%emt 0:00:09]} 6. Bg2 {[%emt 0:00:13]} Bb4 {[%emt 0:00:16]} 7. c3 {[%emt 0:01:23]} Be7 {[%emt 0:00:20]} 8. O-O {[%emt 0:00:25]} O-O {[%emt 0:00:12]} 9. e5 {[%emt 0:01:02]} Nfd7 {[%emt 0:00:07]} 10. Re1 {[%emt 0:00:23]} c5 {[%emt 0:00:13]} 11. h3 {[%emt 0:04:12]} Bh5 {[%emt 0:01:28]} 12. Nf1 {[%emt 0:01:42]} Nc6 {[%emt 0:01:01]} 13. g4 {[%emt 0:05:31]} Bg6 {[%emt 0:00:05]} 14. Ng3 {[%emt 0:00:06]} Qc7 {[%emt 0:00:42]} 15. Bf4 {[%emt 0:01:21]} Rae8 {[%emt 0:01:50]} 16. h4 {[%emt 0:08:55]} f6 {[%emt 0:04:22]} 17. h5 {[%emt 0:17:06]} fxe5 {[%emt 0:05:33]} 18. Bxe5 {[%emt 0:06:13]} Ndxe5 {[%emt 0:00:21]} 19. Nxe5 {[%emt 0:00:59]} Nxe5 {[%emt 0:07:38]} 20. hxg6 {[%emt 0:00:19]} Bh4 {[%emt 0:01:16]} 21. gxh7+ {[%emt 0:04:34]} Kh8 {[%emt 0:00:26]} 22. Qe2 {[%emt 0:04:23]} Ng6 {[%emt 0:02:29]} 23. Qe3 {[%emt 0:11:36]} d4 {[%emt 0:04:09]} 24. cxd4 {[%emt 0:01:17]} cxd4 {[%emt 0:00:08]} 25. Qxd4 {[%emt 0:00:13]} Bxg3 {[%emt 0:00:07]} 26. fxg3 {[%emt 0:00:24]} Qxg3 {[%emt 0:00:17]} 27. Qe4 {[%emt 0:09:11]} Nf4 {[%emt 0:01:40]} 28. Kh1 {[%emt 0:06:10]} Rf6 {[%emt 0:06:47]} 29. Qf3 {[%emt 0:04:15]} Rh6+ {[%emt 0:00:31]} 30. Kg1 {[%emt 0:00:23]} Nh3+ {[%emt 0:00:14]} 0-1

[Event "WYCC 2018 G18"]
[Site "Halkidiki"]
[Date "2018.10.22"]
[Round "4"]
[White "Mahmutagic, Mevlida"]
[Black "Buchta, Agnieszka"]
[Result "0-1"]
[ECO "B40"]
[WhiteElo "1484"]
[BlackElo "1879"]
[Annotator "NA"]
[PlyCount "64"]
[EventDate "2018.10.20"]
[EventType "swiss"]
[EventCountry "GRE"]
[SourceTitle "playchess.com"]
[Source "ChessBase"]
[SourceQuality "1"]
[TimeControl "40/5400+30:1800+30"]

1. e4 {[%emt 0:00:00]} c5 {[%emt 0:00:00]} 2. Nf3 {[%emt 0:00:11]} e6 {[%emt 0:00:02]} 3. d4 {[%emt 0:00:44]} cxd4 {[%emt 0:00:09]} 4. Nxd4 {[%emt 0:00:15]} Nf6 {[%emt 0:00:08]} 5. Nc3 {[%emt 0:00:35]} Bb4 {[%emt 0:00:46]} 6. Bd2 {[%emt 0:10:58]} Bxc3 {[%emt 0:13:44]} 7. Bxc3 {[%emt 0:00:50]} Nxe4 {[%emt 0:00:54]} 8. Qg4 {[%emt 0:05:01]} Nxc3 {[%emt 0:08:10]} 9. Qxg7 {[%emt 0:02:25]} Rf8 {[%emt 0:05:10]} 10. bxc3 {[%emt 0:02:57]} a6 {[%emt 0:04:31]} 11. Qxh7 {[%emt 0:06:00]} Qa5 {[%emt 0:03:05]} 12. Qd3 {[%emt 0:02:32]} d5 {[%emt 0:01:53]} 13. Be2 {[%emt 0:02:28]} Bd7 {[%emt 0:02:27]} 14. Nb3 {[%emt 0:06:12]} Qc7 {[%emt 0:01:56]} 15. c4 {[%emt 0:04:10]} dxc4 {[%emt 0:06:28]} 16. Qxc4 {[%emt 0:00:29]} Nc6 {[%emt 0:01:14]} 17. O-O {[%emt 0:03:36]} O-O-O {[%emt 0:01:37]} 18. Rfd1 {[%emt 0:06:16]} Rh8 {[%emt 0:03:10]} 19. h3 {[%emt 0:06:33]} Rdg8 {[%emt 0:02:39]} 20. Rd3 {[%emt 0:03:56]} f5 {[%emt 0:12:47]} 21. Nc5 {[%emt 0:00:42]} Ne5 {[%emt 0:01:46]} 22. Rxd7 {[%emt 0:11:25]} Nxd7 {[%emt 0:03:14]} 23. Nxe6 {[%emt 0:01:07]} Qxc4 {[%emt 0:01:56]} 24. Bxc4 {[%emt 0:00:10]} Ne5 {[%emt 0:04:12]} 25. Bb3 {[%emt 0:03:35]} Rxh3 {[%emt 0:09:32]} 26. Nf4 {[%emt 0:01:18]} Nf3+ {[%emt 0:00:23]} 27. Kf1 {[%emt 0:00:29]} Rh1+ {[%emt 0:03:16]} 28. Ke2 {[%emt 0:00:31]} Re8+ {[%emt 0:00:17]} 29. Kxf3 {[%emt 0:00:26]} Rxa1 {[%emt 0:00:13]} 30. Be6+ {[%emt 0:00:18]} Rxe6 {[%emt 0:02:05]} 31. Nxe6 {[%emt 0:00:14]} Rxa2 {[%emt 0:00:04]} 32. c4 {[%emt 0:00:24]} a5 {[%emt 0:00:25]} 0-1

[Event "WYCC 2018 G18"]
[Site "Halkidiki"]
[Date "2018.10.22"]
[Round "4"]
[White "Saraci, Ndriqona"]
[Black "Salimova, Asal"]
[Result "0-1"]
[ECO "B06"]
[WhiteElo "1263"]
[BlackElo "1870"]
[Annotator "NA"]
[PlyCount "38"]
[EventDate "2018.10.20"]
[EventType "swiss"]
[EventCountry "GRE"]
[SourceTitle "playchess.com"]
[Source "ChessBase"]
[SourceQuality "1"]
[TimeControl "40/5400+30:1800+30"]

1. e4 {[%emt 0:00:00]} g6 {[%emt 0:00:00]} 2. d4 {[%emt 0:00:00]} Bg7 {[%emt 0:00:00]} 3. Nc3 {[%emt 0:00:00]} d6 {[%emt 0:00:00]} 4. Be3 {[%emt 0:00:04]} a6 {[%emt 0:00:00]} 5. Qd2 {[%emt 0:00:49]} Nd7 {[%emt 0:00:42]} 6. Bd3 {[%emt 0:03:55]} b5 {[%emt 0:01:32]} 7. Nce2 {[%emt 0:03:11]} Bb7 {[%emt 0:00:27]} 8. Nf3 {[%emt 0:02:42]} c5 {[%emt 0:00:43]} 9. Ng3 {[%emt 0:06:56]} h6 {[%emt 0:01:19]} 10. b3 {[%emt 0:06:45]} Ngf6 {[%emt 0:01:15]} 11. h3 {[%emt 0:02:04]} Qc7 {[%emt 0:06:27]} 12. Qe2 {[%emt 0:06:50]} Rc8 {[%emt 0:04:26]} 13. c4 {[%emt 0:07:58]} bxc4 {[%emt 0:01:23]} 14. Bxc4 {[%emt 0:02:34]} Nxe4 {[%emt 0:04:21]} 15. Bxa6 {[%emt 0:02:30]} Nxg3 {[%emt 0:00:15]} 16. fxg3 {[%emt 0:00:09]} Qa5+ {[%emt 0:00:10]} 17. Bd2 {[%emt 0:03:44]} Qxa6 {[%emt 0:00:10]} 18. Qf2 {[%emt 0:00:27]} Bxf3 {[%emt 0:00:39]} 19. gxf3 {[%emt 0:02:01]} Bxd4 {[%emt 0:00:12]} 0-1

[Event "WYCC 2018 G18"]
[Site "Halkidiki"]
[Date "2018.10.23"]
[Round "5"]
[White "Shuvalova, Polina"]
[Black "Sargsyan, Anna M."]
[Result "1-0"]
[ECO "B12"]
[WhiteElo "2421"]
[BlackElo "2331"]
[Annotator "NA RC"]
[PlyCount "93"]
[EventDate "2018.10.20"]
[EventType "swiss"]
[EventCountry "GRE"]
[SourceTitle "playchess.com"]
[Source "ChessBase"]
[SourceQuality "1"]
[TimeControl "40/5400+30:1800+30"]

1. e4 {[%emt 0:00:00]} c6 {[%emt 0:00:00]} 2. d4 {[%emt 0:00:00]} d5 {[%emt 0:00:00]} 3. e5 {[%emt 0:00:00]} Bf5 {[%emt 0:00:00]} 4. Nd2 {[%emt 0:00:00]} e6 {[%emt 0:00:02]} 5. Nb3 {[%emt 0:00:00]} Nd7 {[%emt 0:01:56]} 6. Nf3 {[%emt 0:00:08]} Ne7 {[%emt 0:00:14] B12: Caro-Kann: Advance Variation} 7. Be2 {[%emt 0:00:09]} Nc8 {[%emt 0:01:13]} 8. O-O {[%emt 0:00:12]} Be7 {[%emt 0:00:20]} 9. Be3 {[%emt 0:01:15]} O-O {[%emt 0:00:25]} 10. Ne1 {[%emt 0:02:44] LiveBook: 7 Games} a6 $146 {[%emt 0:07:49]} ({Predecessor:} 10... f6 11. f4 fxe5 12. fxe5 Ncb6 13. Nd2 Na4 14. Rb1 {½-½ (46) Socko,B (2644)-Vokarev,S (2502) Plovdiv 2008}) 11. f4 {[%emt 0:04:05]} f6 {[%emt 0:02:18]} 12. Bd3 {[%emt 0:09:32]} fxe5 {[%emt 0:05:55]} 13. fxe5 {[%emt 0:01:40]} Bg5 {[%emt 0:00:34]} 14. Bf2 {[%emt 0:09:33]} Ncb6 {[%emt 0:20:09]} 15. Qe2 {[%emt 0:04:07]} Na4 {[%emt 0:04:29]} 16. Bxf5 {[%emt 0:06:27]} Rxf5 {[%emt 0:00:49]} 17. c4 {[%emt 0:01:38]} Nab6 {[%emt 0:21:08]} 18. c5 {[%emt 0:01:29]} Nc4 {[%emt 0:00:11]} 19. Nf3 {[%emt 0:05:59]} a5 {[%emt 0:02:37]} 20. h4 {[%emt 0:10:07]} Be7 {[%emt 0:00:29]} 21. Nc1 {[%emt 0:00:22]} b6 {[%emt 0:05:22]} 22. b3 {[%emt 0:03:55]} Na3 {[%emt 0:00:16]} 23. Nd3 {[%emt 0:03:34]} a4 {[%emt 0:03:07]} 24. g4 {[%emt 0:02:34]} Rf8 {[%emt 0:04:25]} 25. Kg2 {[%emt 0:01:04]} Nb5 {[%emt 0:02:47]} 26. b4 {[%emt 0:04:09]} Nc3 {[%emt 0:02:31]} 27. Qe3 {[%emt 0:01:40]} Ne4 {[%emt 0:05:34]} 28. Bg3 {[%emt 0:10:11]} Qe8 {[%emt 0:03:24]} 29. Nf4 {[%emt 0:03:07]} Bd8 {[%emt 0:00:07]} 30. Nd2 {[%emt 0:00:23]} Nxd2 {[%emt 0:01:46]} 31. Qxd2 {[%emt 0:00:02]} b5 {[%emt 0:01:06]} 32. Rf2 {[%emt 0:03:02]} g5 {[%emt 0:01:09]} 33. hxg5 {[%emt 0:01:18]} Bxg5 {[%emt 0:00:01]} 34. Qd3 {[%emt 0:00:14]} Bxf4 {[%emt 0:00:12]} 35. Bxf4 {[%emt 0:00:21]} Qg6 {[%emt 0:00:06]} 36. Qxg6+ {[%emt 0:01:26]} hxg6 $16 {[%emt 0:00:01]} 37. Raf1 {[%emt 0:04:54]} Rf7 {[%emt 0:00:59]} 38. Bh6 {[%emt 0:00:35]} Rxf2+ {[%emt 0:00:23]} 39. Rxf2 {[%emt 0:00:06]} Re8 {[%emt 0:00:32]} 40. Kg3 {[%emt 0:00:00]} Re7 {[%emt 0:00:00]} 41. Rf1 {[%emt 0:20:58]} Rf7 {[%emt 0:01:36]} 42. Rh1 {[%emt 0:00:24]} Rh7 {[%emt 0:00:21]} 43. Kf4 {[%emt 0:00:41]} Rf7+ {[%emt 0:15:01]} 44. Kg5 {[%emt 0:00:06]} Kh7 {[%emt 0:00:04]} 45. Bf8+ {[%emt 0:00:18]} Kg8 {[%emt 0:00:02]} 46. Bd6 {[%emt 0:00:10]} Rh7 {[%emt 0:00:17]} 47. Rh6 {[%emt 0:02:07]} 1-0